[Event "*** Titled Tuesday Blitz"]
[Site "Chess.com"]
[Date "2020.05.19"]
[Round "5"]
[White "TurboSteen"]
[Black "Popopuiyt"]
[Result "0-1"]
[WhiteElo "1994"]
[BlackElo "2366"]
[TimeControl "180+1"]
[EndTime "12:55:45 PDT"]
[Termination "Popopuiyt won on time"]

1. e4 {[%clk 0:03:00.9]} 1... c5 {[%clk 0:02:57]} 2. Nc3 {[%clk 0:02:57.9]} 2...
Nc6 {[%clk 0:02:56.9]} 3. Bb5 {[%clk 0:02:55.7]} 3... Nd4 {[%clk 0:02:57.2]} 4.
Nf3 {[%clk 0:02:53.9]} 4... a6 {[%clk 0:02:53.9]} 5. Bd3 {[%clk 0:02:51.2]} 5...
b5 {[%clk 0:02:44.6]} 6. Nxd4 {[%clk 0:02:44.9]} 6... cxd4 {[%clk 0:02:44.6]} 7.
Ne2 {[%clk 0:02:44.6]} 7... e5 {[%clk 0:02:44.5]} 8. O-O {[%clk 0:02:43.2]} 8...
Bb7 {[%clk 0:02:42.7]} 9. f4 {[%clk 0:02:41.5]} 9... d5 {[%clk 0:02:42.5]} 10.
Ng3 {[%clk 0:02:28.4]} 10... dxe4 {[%clk 0:02:28.1]} 11. Nxe4 {[%clk 0:02:20]}
11... f5 {[%clk 0:02:27.7]} 12. Ng5 {[%clk 0:01:21.4]} 12... e4 {[%clk
0:02:27.7]} 13. Be2 {[%clk 0:01:18.2]} 13... Nf6 {[%clk 0:02:26.2]} 14. d3
{[%clk 0:01:12.3]} 14... Bc5 {[%clk 0:02:21]} 15. Kh1 {[%clk 0:01:03.8]} 15...
Qe7 {[%clk 0:02:14.9]} 16. Bd2 {[%clk 0:00:48.7]} 16... O-O {[%clk 0:02:13.7]}
17. a4 {[%clk 0:00:34.6]} 17... h6 {[%clk 0:02:11]} 18. Nh3 {[%clk 0:00:29]}
18... Kh8 {[%clk 0:01:57.8]} 19. axb5 {[%clk 0:00:25.9]} 19... axb5 {[%clk
0:01:58.1]} 20. Rxa8 {[%clk 0:00:24]} 20... Rxa8 {[%clk 0:01:59]} 21. dxe4
{[%clk 0:00:23.2]} 21... fxe4 {[%clk 0:01:57.8]} 22. Bxb5 {[%clk 0:00:21.5]}
22... e3 {[%clk 0:01:43.7]} 23. Be1 {[%clk 0:00:06.5]} 23... Qe4 {[%clk
0:01:35.2]} 24. Rg1 {[%clk 0:00:04.9]} 24... Bc8 {[%clk 0:01:22.1]} 25. Bd3
{[%clk 0:00:01.7]} 25... Qd5 {[%clk 0:01:13.6]} 0-1

[Event "*** Titled Tuesday Blitz"]
[Site "Chess.com"]
[Date "2020.05.19"]
[Round "5"]
[White "LiverpooL174"]
[Black "SaraciNderim"]
[Result "0-1"]
[WhiteElo "2527"]
[BlackElo "2848"]
[TimeControl "180+1"]
[EndTime "12:55:51 PDT"]
[Termination "SaraciNderim won by resignation"]

1. Nf3 {[%clk 0:03:00.9]} 1... b6 {[%clk 0:02:59.5]} 2. b3 {[%clk 0:03:01.8]}
2... Bb7 {[%clk 0:02:59.9]} 3. Bb2 {[%clk 0:03:02.6]} 3... Nf6 {[%clk
0:03:00.8]} 4. g3 {[%clk 0:03:03.2]} 4... g6 {[%clk 0:03:00.9]} 5. Bg2 {[%clk
0:03:03.7]} 5... Bg7 {[%clk 0:03:01.2]} 6. O-O {[%clk 0:03:04.4]} 6... O-O
{[%clk 0:03:01.3]} 7. c4 {[%clk 0:03:05.1]} 7... d5 {[%clk 0:03:01.6]} 8. d4
{[%clk 0:03:04.7]} 8... dxc4 {[%clk 0:03:01]} 9. bxc4 {[%clk 0:03:05.6]} 9...
Ne4 {[%clk 0:02:59.4]} 10. Nc3 {[%clk 0:03:04]} 10... Nxc3 {[%clk 0:02:58.9]}
11. Bxc3 {[%clk 0:03:04.9]} 11... c5 {[%clk 0:02:59.4]} 12. e3 {[%clk
0:03:03.7]} 12... Nc6 {[%clk 0:02:56.5]} 13. Rc1 {[%clk 0:02:59.6]} 13... cxd4
{[%clk 0:02:56.6]} 14. exd4 {[%clk 0:02:59.5]} 14... Rc8 {[%clk 0:02:56.3]} 15.
d5 {[%clk 0:02:41.8]} 15... Na5 {[%clk 0:02:48.8]} 16. Bxg7 {[%clk 0:02:42.4]}
16... Kxg7 {[%clk 0:02:48.2]} 17. Qd4+ {[%clk 0:02:43.3]} 17... Kg8 {[%clk
0:02:48]} 18. Rfd1 {[%clk 0:02:39.3]} 18... Qd6 {[%clk 0:02:47.3]} 19. h4 {[%clk
0:02:39.4]} 19... Qf6 {[%clk 0:02:44.1]} 20. Qe3 {[%clk 0:02:30.3]} 20... Nxc4
{[%clk 0:02:36.1]} 21. Qe2 {[%clk 0:02:30.2]} 21... Nd6 {[%clk 0:02:32.7]} 22.
Rxc8 {[%clk 0:02:23]} 22... Rxc8 {[%clk 0:02:32.5]} 23. Ne5 {[%clk 0:02:23.9]}
23... Qf5 {[%clk 0:02:12.6]} 24. Rd2 {[%clk 0:02:15.1]} 24... Rc1+ {[%clk
0:01:35.6]} 25. Kh2 {[%clk 0:02:15.4]} 25... Ba6 {[%clk 0:01:35.8]} 26. Qxa6
{[%clk 0:02:12]} 26... Qxe5 {[%clk 0:01:35.6]} 27. Re2 {[%clk 0:02:11]} 27...
Qf6 {[%clk 0:01:24.7]} 28. Qxa7 {[%clk 0:02:09.8]} 28... Nf5 {[%clk 0:01:24.1]}
29. Qb8+ {[%clk 0:02:00]} 29... Kg7 {[%clk 0:01:23.6]} 30. Qe5 {[%clk
0:02:00.9]} 30... Qxe5 {[%clk 0:01:21.2]} 31. Rxe5 {[%clk 0:02:01.8]} 31... Rc2
{[%clk 0:01:21.4]} 32. Kg1 {[%clk 0:01:58.4]} 32... Rxa2 {[%clk 0:01:18.9]} 33.
d6 {[%clk 0:01:59.1]} 33... exd6 {[%clk 0:01:09.5]} 34. Rb5 {[%clk 0:01:59.6]}
34... Ra1+ {[%clk 0:00:52.4]} 35. Kh2 {[%clk 0:01:59.4]} 35... Rd1 {[%clk
0:00:51.2]} 36. Rxb6 {[%clk 0:01:58.4]} 36... d5 {[%clk 0:00:51]} 37. Bf3 {[%clk
0:01:58.4]} 37... Rd2 {[%clk 0:00:50.2]} 38. Kg1 {[%clk 0:01:59.1]} 38... d4
{[%clk 0:00:48.1]} 39. Kf1 {[%clk 0:01:57.5]} 39... h5 {[%clk 0:00:47.5]} 40.
Ke1 {[%clk 0:01:57.7]} 40... Ra2 {[%clk 0:00:45.4]} 41. Be4 {[%clk 0:01:57.7]}
41... Ra1+ {[%clk 0:00:45]} 42. Ke2 {[%clk 0:01:57.8]} 42... Nh6 {[%clk
0:00:40.3]} 43. Rd6 {[%clk 0:01:55.7]} 43... Ra2+ {[%clk 0:00:40.1]} 44. Ke1
{[%clk 0:01:56.1]} 44... Ng4 {[%clk 0:00:39.3]} 45. Rxd4 {[%clk 0:01:52.8]}
45... Rxf2 {[%clk 0:00:37.5]} 46. Rd3 {[%clk 0:01:39.1]} 46... Rf6 {[%clk
0:00:36.4]} 47. Rf3 {[%clk 0:01:39.3]} 47... Re6 {[%clk 0:00:36.2]} 48. Rf4
{[%clk 0:01:35.6]} 48... f5 {[%clk 0:00:35.9]} 0-1

[Event "*** Titled Tuesday Blitz"]
[Site "Chess.com"]
[Date "2020.05.19"]
[Round "5"]
[White "Gvetadze"]
[Black "novocane"]
[Result "1-0"]
[WhiteElo "2396"]
[BlackElo "2217"]
[TimeControl "180+1"]
[EndTime "12:55:55 PDT"]
[Termination "Gvetadze won by resignation"]

1. Nf3 {[%clk 0:03:00.9]} 1... c5 {[%clk 0:02:35.1]} 2. g3 {[%clk 0:03:01.8]}
2... b6 {[%clk 0:02:33.9]} 3. Bg2 {[%clk 0:03:01.8]} 3... Bb7 {[%clk 0:02:33.7]}
4. O-O {[%clk 0:03:02.7]} 4... e6 {[%clk 0:02:34.1]} 5. Ne1 {[%clk 0:03:02.8]}
5... Bxg2 {[%clk 0:02:32.8]} 6. Nxg2 {[%clk 0:03:03.7]} 6... Nf6 {[%clk
0:02:31.1]} 7. d3 {[%clk 0:03:03.4]} 7... d5 {[%clk 0:02:31.4]} 8. Nd2 {[%clk
0:03:02.9]} 8... Bd6 {[%clk 0:02:31.3]} 9. e4 {[%clk 0:03:03]} 9... Nbd7 {[%clk
0:02:31.4]} 10. Qe2 {[%clk 0:03:01.8]} 10... O-O {[%clk 0:02:30.2]} 11. f4
{[%clk 0:03:01.5]} 11... dxe4 {[%clk 0:02:27.8]} 12. dxe4 {[%clk 0:03:01.2]}
12... e5 {[%clk 0:02:27.6]} 13. f5 {[%clk 0:03:01]} 13... a6 {[%clk 0:02:24.1]}
14. g4 {[%clk 0:03:00.6]} 14... b5 {[%clk 0:02:21]} 15. g5 {[%clk 0:02:59.3]}
15... Ne8 {[%clk 0:02:20]} 16. h4 {[%clk 0:02:59.1]} 16... c4 {[%clk 0:02:18.7]}
17. Kh1 {[%clk 0:02:52.6]} 17... Nc5 {[%clk 0:02:17.5]} 18. Nf3 {[%clk
0:02:51.5]} 18... Nc7 {[%clk 0:02:07.8]} 19. Nh2 {[%clk 0:02:50.3]} 19... Qd7
{[%clk 0:02:03.8]} 20. Bd2 {[%clk 0:02:41.1]} 20... Qc6 {[%clk 0:02:03.6]} 21.
Rae1 {[%clk 0:02:39.6]} 21... g6 {[%clk 0:01:55.2]} 22. Ng4 {[%clk 0:02:37.6]}
22... a5 {[%clk 0:01:36.8]} 23. Nf6+ {[%clk 0:02:21.4]} 23... Kh8 {[%clk
0:01:28]} 24. Qg4 {[%clk 0:02:09.2]} 24... Be7 {[%clk 0:01:21.2]} 25. h5 {[%clk
0:02:01.5]} 25... Bxf6 {[%clk 0:01:15.6]} 26. gxf6 {[%clk 0:02:01.1]} 26... g5
{[%clk 0:01:04]} 27. Bxg5 {[%clk 0:01:54.5]} 27... Rg8 {[%clk 0:00:59.8]} 28.
Qh4 {[%clk 0:01:38.7]} 28... Rxg5 {[%clk 0:00:52.1]} 29. Qxg5 {[%clk 0:01:35.8]}
29... Rg8 {[%clk 0:00:52.1]} 30. Qh4 {[%clk 0:01:34]} 30... Ne8 {[%clk
0:00:46.2]} 31. Rf3 {[%clk 0:01:21.7]} 31... Nxf6 {[%clk 0:00:45.4]} 32. Rg3
{[%clk 0:01:19.8]} 32... Ncxe4 {[%clk 0:00:41.5]} 33. Rxg8+ {[%clk 0:01:18.8]}
33... Kxg8 {[%clk 0:00:40.9]} 34. h6 {[%clk 0:01:14]} 34... Nh5 {[%clk
0:00:30.4]} 35. Qd8+ {[%clk 0:01:08.8]} 1-0

[Event "*** Titled Tuesday Blitz"]
[Site "Chess.com"]
[Date "2020.05.19"]
[Round "5"]
[White "MathiasWomacka"]
[Black "Ashedu66"]
[Result "1-0"]
[WhiteElo "2378"]
[BlackElo "2139"]
[TimeControl "180+1"]
[EndTime "12:55:57 PDT"]
[Termination "MathiasWomacka won on time"]

1. e4 {[%clk 0:02:54.3]} 1... e5 {[%clk 0:02:59.3]} 2. Nf3 {[%clk 0:02:53.6]}
2... Nc6 {[%clk 0:02:59.3]} 3. Bc4 {[%clk 0:02:51]} 3... Bc5 {[%clk 0:02:58.7]}
4. O-O {[%clk 0:02:49.9]} 4... Nf6 {[%clk 0:02:58.2]} 5. d3 {[%clk 0:02:50.2]}
5... a6 {[%clk 0:02:57.2]} 6. c3 {[%clk 0:02:43.7]} 6... Ba7 {[%clk 0:02:46.5]}
7. Nbd2 {[%clk 0:02:23.7]} 7... O-O {[%clk 0:02:44.4]} 8. h3 {[%clk 0:02:23]}
8... d5 {[%clk 0:02:37.2]} 9. exd5 {[%clk 0:02:23.1]} 9... Nxd5 {[%clk
0:02:37.2]} 10. Re1 {[%clk 0:02:23.6]} 10... b5 {[%clk 0:01:49.1]} 11. Bb3
{[%clk 0:02:20.9]} 11... Nf4 {[%clk 0:01:48.2]} 12. d4 {[%clk 0:02:07.7]} 12...
exd4 {[%clk 0:01:29]} 13. Ne4 {[%clk 0:02:07.6]} 13... Ne6 {[%clk 0:01:20]} 14.
Neg5 {[%clk 0:02:02.2]} 14... dxc3 {[%clk 0:01:03.9]} 15. Qc2 {[%clk 0:01:51.2]}
15... Nxg5 {[%clk 0:00:53.2]} 16. Nxg5 {[%clk 0:01:52.1]} 16... g6 {[%clk
0:00:48.4]} 17. bxc3 {[%clk 0:01:40.8]} 17... Bf5 {[%clk 0:00:42.8]} 18. Qe2
{[%clk 0:01:40.5]} 18... Qf6 {[%clk 0:00:32.9]} 19. Qf3 {[%clk 0:01:30.2]} 19...
Rae8 {[%clk 0:00:16.9]} 20. Rxe8 {[%clk 0:01:28.6]} 20... Rxe8 {[%clk 0:00:17]}
21. Bxf7+ {[%clk 0:01:28.3]} 21... Qxf7 {[%clk 0:00:04.3]} 22. Nxf7 {[%clk
0:01:28.2]} 22... Re1+ {[%clk 0:00:04]} 23. Kh2 {[%clk 0:01:28.3]} 23... Kxf7
{[%clk 0:00:03]} 24. Qxc6 {[%clk 0:01:27.3]} 24... Bxf2 {[%clk 0:00:02.9]} 25.
Qxc7+ {[%clk 0:01:21.7]} 25... Ke6 {[%clk 0:00:02.5]} 26. Bb2 {[%clk 0:01:11.3]}
26... Bg1+ {[%clk 0:00:02]} 27. Kh1 {[%clk 0:01:11.7]} 1-0

[Event "*** Titled Tuesday Blitz"]
[Site "Chess.com"]
[Date "2020.05.19"]
[Round "5"]
[White "Kaliopa"]
[Black "OMGCovid-19"]
[Result "1-0"]
[WhiteElo "2107"]
[BlackElo "1837"]
[TimeControl "180+1"]
[EndTime "12:55:57 PDT"]
[Termination "Kaliopa won by resignation"]

1. e4 {[%clk 0:03:00.9]} 1... e6 {[%clk 0:02:59.8]} 2. d4 {[%clk 0:03:00]} 2...
d5 {[%clk 0:03:00.7]} 3. Nd2 {[%clk 0:03:00.2]} 3... Nf6 {[%clk 0:03:00]} 4. e5
{[%clk 0:02:59.4]} 4... Nfd7 {[%clk 0:02:59.7]} 5. Ngf3 {[%clk 0:02:58.5]} 5...
c5 {[%clk 0:02:59.1]} 6. c3 {[%clk 0:02:57.2]} 6... Qb6 {[%clk 0:02:53.1]} 7.
Bd3 {[%clk 0:02:55.6]} 7... Nc6 {[%clk 0:02:51]} 8. O-O {[%clk 0:02:46.2]} 8...
cxd4 {[%clk 0:02:50.7]} 9. cxd4 {[%clk 0:02:37.6]} 9... Nxd4 {[%clk 0:02:50.8]}
10. Nxd4 {[%clk 0:02:37.3]} 10... Qxd4 {[%clk 0:02:49.8]} 11. Nf3 {[%clk
0:02:37]} 11... Qg4 {[%clk 0:02:48]} 12. h3 {[%clk 0:02:15.8]} 12... Qh5 {[%clk
0:02:46.7]} 13. Bf4 {[%clk 0:02:00.1]} 13... Bc5 {[%clk 0:02:44.9]} 14. Rc1
{[%clk 0:01:50.9]} 14... Bb6 {[%clk 0:02:42.1]} 15. Kh2 {[%clk 0:00:59.3]} 15...
O-O {[%clk 0:02:40.4]} 16. g4 {[%clk 0:00:55.8]} 16... Qg6 {[%clk 0:02:14]} 17.
Bxg6 {[%clk 0:00:53.3]} 17... fxg6 {[%clk 0:02:14.9]} 18. Be3 {[%clk 0:00:49.3]}
18... Bd8 {[%clk 0:02:10.1]} 19. Kg2 {[%clk 0:00:43.7]} 19... b6 {[%clk
0:02:10]} 20. Rc6 {[%clk 0:00:39.5]} 20... Bb7 {[%clk 0:02:08.2]} 21. Rxe6
{[%clk 0:00:35.8]} 21... d4 {[%clk 0:02:08.4]} 22. Qxd4 {[%clk 0:00:34.4]} 22...
Bxf3+ {[%clk 0:02:02.7]} 23. Kg1 {[%clk 0:00:32.3]} 23... Nc5 {[%clk 0:02:02.5]}
24. Rd6 {[%clk 0:00:20.5]} 24... Be7 {[%clk 0:02:02.5]} 25. Qc4+ {[%clk
0:00:20]} 25... Kh8 {[%clk 0:01:59.7]} 26. Bxc5 {[%clk 0:00:19.4]} 26... Rac8
{[%clk 0:01:56.9]} 27. Rd2 {[%clk 0:00:07.2]} 27... Bxc5 {[%clk 0:01:56.3]} 28.
Qe6 {[%clk 0:00:05.7]} 28... Rce8 {[%clk 0:01:50.8]} 29. Qb3 {[%clk 0:00:04.9]}
29... Bc6 {[%clk 0:01:46.5]} 30. Rfd1 {[%clk 0:00:04]} 30... Rf3 {[%clk
0:01:44.6]} 31. Qxf3 {[%clk 0:00:02.1]} 31... Bxf3 {[%clk 0:01:43.8]} 32. Rd8
{[%clk 0:00:02.7]} 32... Rf8 {[%clk 0:01:41.3]} 33. Rxf8+ {[%clk 0:00:02.3]}
33... Bxf8 {[%clk 0:01:41.4]} 34. Rd8 {[%clk 0:00:02.3]} 34... Kg8 {[%clk
0:01:41.7]} 35. e6 {[%clk 0:00:02.6]} 35... h5 {[%clk 0:01:33]} 36. e7 {[%clk
0:00:02.8]} 1-0

[Event "*** Titled Tuesday Blitz"]
[Site "Chess.com"]
[Date "2020.05.19"]
[Round "5"]
[White "BeanScreen"]
[Black "Indianlad"]
[Result "0-1"]
[WhiteElo "2620"]
[BlackElo "2937"]
[TimeControl "180+1"]
[EndTime "12:56:00 PDT"]
[Termination "Indianlad won by checkmate"]

1. e4 {[%clk 0:00:35.7]} 1... e5 {[%clk 0:02:59.2]} 2. Nf3 {[%clk 0:00:35.7]}
2... Nc6 {[%clk 0:02:59.8]} 3. Bc4 {[%clk 0:00:35.9]} 3... Bc5 {[%clk
0:02:59.3]} 4. c3 {[%clk 0:00:36.2]} 4... Nf6 {[%clk 0:02:59.6]} 5. d3 {[%clk
0:00:36.6]} 5... d6 {[%clk 0:02:59.5]} 6. Nbd2 {[%clk 0:00:36.9]} 6... a6 {[%clk
0:02:59.8]} 7. a4 {[%clk 0:00:36.5]} 7... Ba7 {[%clk 0:02:59.9]} 8. Nf1 {[%clk
0:00:36.8]} 8... O-O {[%clk 0:02:55]} 9. Ng3 {[%clk 0:00:36.8]} 9... Be6 {[%clk
0:02:54.8]} 10. Bxe6 {[%clk 0:00:36.4]} 10... fxe6 {[%clk 0:02:55]} 11. O-O
{[%clk 0:00:36.6]} 11... h6 {[%clk 0:02:53.4]} 12. Qb3 {[%clk 0:00:36.4]} 12...
Qd7 {[%clk 0:02:53]} 13. a5 {[%clk 0:00:36.6]} 13... Kh7 {[%clk 0:02:39.9]} 14.
Be3 {[%clk 0:00:36.6]} 14... Bxe3 {[%clk 0:02:39.3]} 15. fxe3 {[%clk 0:00:37.5]}
15... d5 {[%clk 0:02:40.2]} 16. Nd2 {[%clk 0:00:36.7]} 16... Rab8 {[%clk
0:02:14.3]} 17. Qc2 {[%clk 0:00:33.3]} 17... Kh8 {[%clk 0:02:12.2]} 18. b4
{[%clk 0:00:32.2]} 18... Qe7 {[%clk 0:01:55]} 19. d4 {[%clk 0:00:29.1]} 19...
Ng4 {[%clk 0:01:50.3]} 20. Qd3 {[%clk 0:00:27.4]} 20... Qh4 {[%clk 0:01:47.2]}
21. Nf3 {[%clk 0:00:22]} 21... Rxf3 {[%clk 0:01:47.3]} 22. Rxf3 {[%clk
0:00:22.9]} 22... Nxh2 {[%clk 0:01:41.9]} 23. Qe2 {[%clk 0:00:15.1]} 23... Kg8
{[%clk 0:01:24.9]} 24. Raf1 {[%clk 0:00:12.6]} 24... Ng4 {[%clk 0:01:16.7]} 25.
Rd1 {[%clk 0:00:10]} 25... dxe4 {[%clk 0:01:15.3]} 26. Rff1 {[%clk 0:00:03.3]}
26... Qh2# {[%clk 0:01:15.1]} 0-1

[Event "*** Titled Tuesday Blitz"]
[Site "Chess.com"]
[Date "2020.05.19"]
[Round "5"]
[White "XDPS"]
[Black "Perecke"]
[Result "1-0"]
[WhiteElo "2668"]
[BlackElo "2264"]
[TimeControl "180+1"]
[EndTime "12:56:01 PDT"]
[Termination "XDPS won on time"]

1. d4 {[%clk 0:03:00.9]} 1... d5 {[%clk 0:02:54.9]} 2. Bf4 {[%clk 0:03:00.4]}
2... c5 {[%clk 0:02:49.6]} 3. e3 {[%clk 0:02:59.2]} 3... Nc6 {[%clk 0:02:49.4]}
4. Nf3 {[%clk 0:02:57.6]} 4... Nf6 {[%clk 0:02:46]} 5. Nbd2 {[%clk 0:02:58]}
5... Qb6 {[%clk 0:02:42.4]} 6. dxc5 {[%clk 0:02:57.9]} 6... Qxb2 {[%clk
0:02:38.3]} 7. Rb1 {[%clk 0:02:53.4]} 7... Qxa2 {[%clk 0:02:37.8]} 8. Bb5 {[%clk
0:02:37.4]} 8... e6 {[%clk 0:02:09.2]} 9. c4 {[%clk 0:02:28.5]} 9... Bxc5 {[%clk
0:02:01]} 10. Ra1 {[%clk 0:02:26.4]} 10... Qb2 {[%clk 0:01:59]} 11. Be5 {[%clk
0:02:23.3]} 11... Qb4 {[%clk 0:01:50]} 12. Ra4 {[%clk 0:02:22.1]} 12... O-O
{[%clk 0:01:10.6]} 13. Rxb4 {[%clk 0:02:19.1]} 13... Nxb4 {[%clk 0:01:11.5]} 14.
O-O {[%clk 0:02:16.2]} 14... a6 {[%clk 0:01:08]} 15. Ba4 {[%clk 0:02:16.2]}
15... dxc4 {[%clk 0:01:08.2]} 16. Bxf6 {[%clk 0:01:45.5]} 16... gxf6 {[%clk
0:01:04]} 17. Ne4 {[%clk 0:01:45.6]} 17... Be7 {[%clk 0:01:01.9]} 18. Qd4 {[%clk
0:01:44.6]} 18... b5 {[%clk 0:00:55.1]} 19. Nxf6+ {[%clk 0:01:27.3]} 19... Bxf6
{[%clk 0:00:54.5]} 20. Qxf6 {[%clk 0:01:28.2]} 20... bxa4 {[%clk 0:00:52.7]} 21.
Ne5 {[%clk 0:01:26.9]} 21... Nd5 {[%clk 0:00:28.1]} 22. Qg5+ {[%clk 0:01:18.2]}
22... Kh8 {[%clk 0:00:27.6]} 23. e4 {[%clk 0:01:18.7]} 23... f6 {[%clk
0:00:15.9]} 24. Qh6 {[%clk 0:01:18.5]} 24... Kg8 {[%clk 0:00:16.2]} 25. Nc6
{[%clk 0:01:09.8]} 25... Nc7 {[%clk 0:00:04.9]} 26. Ne7+ {[%clk 0:01:09.5]}
26... Kf7 {[%clk 0:00:04]} 27. Qxh7+ {[%clk 0:01:09.6]} 27... Ke8 {[%clk
0:00:04.2]} 28. Ng6 {[%clk 0:01:10.1]} 28... Rf7 {[%clk 0:00:02.1]} 29. Qg8+
{[%clk 0:01:10]} 1-0

[Event "*** Titled Tuesday Blitz"]
[Site "Chess.com"]
[Date "2020.05.19"]
[Round "5"]
[White "hypert"]
[Black "antoszu"]
[Result "0-1"]
[WhiteElo "2376"]
[BlackElo "2548"]
[TimeControl "180+1"]
[EndTime "12:56:02 PDT"]
[Termination "antoszu won by resignation"]

1. e4 {[%clk 0:03:00.9]} 1... c5 {[%clk 0:02:58.6]} 2. Nf3 {[%clk 0:03:01.3]}
2... d6 {[%clk 0:02:58.9]} 3. d4 {[%clk 0:03:00.5]} 3... cxd4 {[%clk 0:02:59.8]}
4. Nxd4 {[%clk 0:03:01.1]} 4... Nf6 {[%clk 0:03:00.4]} 5. Nc3 {[%clk 0:03:01.6]}
5... a6 {[%clk 0:03:01]} 6. Qf3 {[%clk 0:03:02.1]} 6... g6 {[%clk 0:02:57.6]} 7.
Be3 {[%clk 0:03:01.5]} 7... Bg7 {[%clk 0:02:57.6]} 8. Qg3 {[%clk 0:03:01.7]}
8... O-O {[%clk 0:02:56.4]} 9. f4 {[%clk 0:03:00.6]} 9... b5 {[%clk 0:02:54.9]}
10. e5 {[%clk 0:02:58.5]} 10... dxe5 {[%clk 0:02:47.5]} 11. fxe5 {[%clk
0:02:59.4]} 11... Nd5 {[%clk 0:02:47.5]} 12. Be2 {[%clk 0:02:05.8]} 12... Nxe3
{[%clk 0:02:39]} 13. Qxe3 {[%clk 0:02:04.9]} 13... Qb6 {[%clk 0:02:34.8]} 14.
O-O-O {[%clk 0:01:58.7]} 14... Bb7 {[%clk 0:02:30.1]} 15. Bf3 {[%clk 0:01:54.9]}
15... e6 {[%clk 0:02:07]} 16. Bxb7 {[%clk 0:01:45.3]} 16... Qxb7 {[%clk
0:02:07.9]} 17. Nf3 {[%clk 0:01:45.3]} 17... Nd7 {[%clk 0:02:00]} 18. Ne4 {[%clk
0:01:36.3]} 18... Qc7 {[%clk 0:01:37.7]} 19. Nd6 {[%clk 0:01:14.6]} 19... Rad8
{[%clk 0:01:22.1]} 20. h4 {[%clk 0:00:52.4]} 20... Nxe5 {[%clk 0:01:08.5]} 21.
Nxe5 {[%clk 0:00:52.4]} 21... Rxd6 {[%clk 0:01:08.3]} 22. Rxd6 {[%clk
0:00:53.3]} 22... Qxd6 {[%clk 0:01:08.8]} 23. Nd3 {[%clk 0:00:52.1]} 23... Qd4
{[%clk 0:01:03.3]} 24. Qxd4 {[%clk 0:00:49.2]} 24... Bxd4 {[%clk 0:01:04.2]} 25.
h5 {[%clk 0:00:50.1]} 25... Rd8 {[%clk 0:00:58.7]} 26. Kd2 {[%clk 0:00:50.1]}
26... Bxb2 {[%clk 0:00:56.3]} 27. Ke2 {[%clk 0:00:50.3]} 27... Bf6 {[%clk
0:00:54.1]} 28. g4 {[%clk 0:00:49.2]} 28... Rc8 {[%clk 0:00:46.5]} 29. Kd1
{[%clk 0:00:48]} 29... Rc4 {[%clk 0:00:44.8]} 30. Rg1 {[%clk 0:00:48.1]} 30...
Bg5 {[%clk 0:00:42.9]} 31. Ne5 {[%clk 0:00:44.2]} 31... Rd4+ {[%clk 0:00:40.9]}
32. Nd3 {[%clk 0:00:43.9]} 32... Ra4 {[%clk 0:00:40]} 0-1

[Event "*** Titled Tuesday Blitz"]
[Site "Chess.com"]
[Date "2020.05.19"]
[Round "5"]
[White "mishikomchedlishvili"]
[Black "ALeks_Ivlev"]
[Result "1-0"]
[WhiteElo "2853"]
[BlackElo "2597"]
[TimeControl "180+1"]
[EndTime "12:56:03 PDT"]
[Termination "mishikomchedlishvili won by resignation"]

1. d4 {[%clk 0:03:00.9]} 1... Nf6 {[%clk 0:02:59.6]} 2. Bg5 {[%clk 0:03:00.1]}
2... Ne4 {[%clk 0:02:57.6]} 3. Bf4 {[%clk 0:03:00.2]} 3... d5 {[%clk 0:02:57.7]}
4. e3 {[%clk 0:02:59.8]} 4... c5 {[%clk 0:02:54.2]} 5. Bd3 {[%clk 0:02:59.4]}
5... cxd4 {[%clk 0:02:52.6]} 6. exd4 {[%clk 0:02:58.9]} 6... Nc6 {[%clk
0:02:52.7]} 7. Bxe4 {[%clk 0:02:58.2]} 7... dxe4 {[%clk 0:02:52.7]} 8. d5 {[%clk
0:02:58]} 8... e5 {[%clk 0:02:35.7]} 9. Bg3 {[%clk 0:02:56.4]} 9... Nb4 {[%clk
0:02:35.3]} 10. Nc3 {[%clk 0:02:53.6]} 10... e3 {[%clk 0:02:04.3]} 11. fxe3
{[%clk 0:02:45.6]} 11... Bd6 {[%clk 0:02:04.1]} 12. Nf3 {[%clk 0:02:35.6]} 12...
O-O {[%clk 0:02:02]} 13. a3 {[%clk 0:02:27]} 13... Na6 {[%clk 0:01:59.8]} 14.
Nxe5 {[%clk 0:02:10.5]} 14... Re8 {[%clk 0:01:47.8]} 15. Nc4 {[%clk 0:02:09.1]}
15... Bxg3+ {[%clk 0:01:47.6]} 16. hxg3 {[%clk 0:02:09.4]} 16... Qg5 {[%clk
0:01:47.8]} 17. Qf3 {[%clk 0:01:35.3]} 17... Bg4 {[%clk 0:01:08.1]} 18. Qf4
{[%clk 0:01:34.3]} 18... Qg6 {[%clk 0:01:08.2]} 19. Ne5 {[%clk 0:01:28.8]} 19...
Rxe5 {[%clk 0:01:06.7]} 20. Qxe5 {[%clk 0:01:28.2]} 20... Qxc2 {[%clk 0:01:05]}
21. O-O {[%clk 0:01:24.9]} 21... Qxb2 {[%clk 0:00:53.6]} 22. Rab1 {[%clk
0:01:22.6]} 22... Qxa3 {[%clk 0:00:52.8]} 23. Rxb7 {[%clk 0:01:20.5]} 23... Rf8
{[%clk 0:00:50.6]} 24. Rxa7 {[%clk 0:01:17.9]} 24... Bc8 {[%clk 0:00:40.5]} 25.
d6 {[%clk 0:01:11.1]} 25... Be6 {[%clk 0:00:23.2]} 26. Qd4 {[%clk 0:00:58.5]}
26... Rd8 {[%clk 0:00:20.5]} 27. Ne4 {[%clk 0:00:57.1]} 27... h5 {[%clk
0:00:12.8]} 28. Qb6 {[%clk 0:00:56.1]} 1-0